bitfinex/quotes_ETHUSD_20241023
["timestamp","ask_amount","ask_price","bid_price","bid_amount"]
[1729687141705,2.82611038,2572.5,2572.1,3.94617399]
[1729687141706,2.82611038,2572.5,2572.1,0.05831399]
[1729687142010,3.54000958,2572.2,2572.1,0.05831399]
[1729687142191,7.42772958,2572.2,2572.1,0.05831399]
[1729687142366,7.97772958,2572.2,2572.1,0.05831399]
[1729687142788,9.52112958,2572.2,2572.1,0.05831399]
[1729687142993,3.88805,2572.0,2571.9,0.05831866]
[1729687143179,7.42805958,2572.0,2571.9,0.05831866]
[1729687146590,7.42805958,2572.0,2571.5,3.88877]
[1729687146772,7.42805958,2572.0,2571.4,5.55334]
[1729687146966,3.88789,2572.1,2571.6,7.77722]
[1729687147167,0.55,2572.1,2571.7,3.94678866]
[1729687147408,14.90527958,2572.4,2571.9,1.5233]
[1729687147574,3.8876,2572.3,2571.9,1.5233]
[1729687147992,3.8876,2572.3,2571.9,5.41147]
[1729687148174,7.47778,2572.4,2571.9,5.41147]
[1729687148175,11.3652,2572.4,2571.9,5.41147]
[1729687148370,5.95288,2572.4,2572.1,3.88774]
[1729687148713,8.99953958,2572.6,2572.1,3.88787]
[1729687149277,12.88675958,2572.6,2572.1,3.88787]
[1729687149480,8.99952958,2572.6,2572.1,3.88787]
[1729687149679,3.0,2572.7,2572.0,3.88792]
[1729687149680,3.0,2572.7,2572.2,1.58159801]
[1729687149922,3.88713,2572.6,2572.2,6.01612781]
[1729687150112,1.21253002,2572.5,2572.2,6.01612781]
[1729687150834,1.21253002,2572.5,2572.2,9.90373781]
[1729687151030,1.21253002,2572.5,2572.2,6.01612781]
[1729687151738,1.21253002,2572.5,2572.2,9.90374781]
[1729687152244,1.21253002,2572.5,2572.3,4.87787478]
[1729687152745,1.21253002,2572.5,2572.3,4.9361828]
[1729687153323,1.21253002,2572.5,2572.4,3.88742]
[1729687153519,1.21253002,2572.5,2572.3,1.0486828]
[1729687155140,3.88699,2572.7,2572.3,4.9362328]
[1729687157314,3.88699,2572.7,2572.4,0.64595328]
[1729687157871,3.88699,2572.7,2572.3,4.9362328]
[1729687158373,7.77406,2572.7,2572.3,1.0486828]
[1729687158570,3.88699,2572.7,2572.3,1.0486828]
[1729687158869,3.88699,2572.7,2572.3,4.9362428]
[1729687159166,3.54000958,2572.5,2572.3,0.05830802]
[1729687159345,11.31464958,2572.5,2572.3,0.05830802]
[1729687159539,3.88728,2572.5,2572.3,0.05830802]
[1729687160234,3.88742,2572.4,2572.3,0.05830802]
[1729687161326,4.43742,2572.4,2572.3,0.05830802]
[1729687161531,6.08502,2572.4,2572.3,0.05830802]
[1729687161876,3.88812,2572.0,2571.7,1.5655]
[1729687163171,3.88812,2572.0,2571.8,0.05831193]
[1729687163727,3.88793,2572.1,2571.8,0.05831193]
[1729687164352,3.88803,2572.0,2571.8,0.05831193]
[1729687165029,3.88817,2571.9,2571.8,0.05831193]
[1729687165232,3.88856,2571.7,2571.4,1.5909]
[1729687165743,3.88827,2571.9,2571.5,0.05831732]
[1729687165945,3.88787,2572.1,2571.5,4.02486046]
[1729687166138,3.88773,2572.2,2571.7,3.88839]
[1729687166382,3.88773,2572.2,2571.8,3.8883]
[1729687166601,3.88773,2572.2,2571.7,3.88847]
[1729687166602,3.88773,2572.2,2571.7,7.77685]
[1729687167080,7.77555,2572.2,2571.8,0.935675]
[1729687167283,7.77555,2572.2,2571.7,3.88838]
[1729687167785,3.88773,2572.2,2571.7,7.77676]
[1729687167988,7.77553,2572.2,2571.7,3.88838]
[1729687168842,3.88773,2572.2,2571.7,3.88838]
[1729687169269,7.77556,2572.2,2571.7,3.88838]
[1729687169856,3.88773,2572.2,2571.7,3.88838]
[1729687170057,7.77554,2572.2,2571.7,4.44103973]
[1729687170400,3.88789,2572.1,2571.7,4.44103973]
[1729687172190,3.88768,2572.3,2571.8,3.88829]
[1729687172695,3.88779,2572.2,2571.8,3.88829]
[1729687172989,3.88779,2572.2,2571.7,0.55265973]
[1729687173156,3.88779,2572.2,2571.7,4.51886079]
[1729687173359,3.88779,2572.2,2571.8,0.99873108]
[1729687173782,3.88779,2572.2,2571.8,4.88704108]
[1729687174799,3.88768,2572.3,2571.8,4.88704108]
[1729687175001,7.77539,2572.3,2571.8,4.88704108]
[1729687175198,3.88776,2572.2,2571.8,4.88704108]
[1729687175898,3.88776,2572.2,2571.8,0.99873108]
[1729687176909,3.88776,2572.2,2571.8,4.88705108]
[1729687177564,7.77558,2572.2,2571.8,4.88705108]
[1729687179387,7.77558,2572.2,2571.8,0.99873108]
[1729687179614,7.77557,2572.2,2571.8,0.99873108]
[1729687180102,3.88845,2571.8,2571.5,0.05831732]
[1729687180864,3.8885,2571.7,2571.5,0.05831732]
[1729687181019,3.88845,2571.8,2571.5,0.05831732]
[1729687181856,3.8882,2571.9,2571.5,0.05831732]
[1729687182026,5.10073002,2571.9,2571.5,0.05831732]
[1729687183248,3.8882,2571.9,2571.5,0.05831732]
[1729687183451,5.10073002,2571.9,2571.5,0.05831732]
[1729687183665,3.8882,2571.9,2571.5,0.05831732]
[1729687184448,3.8882,2571.9,2571.5,0.60871305]
[1729687184644,3.8882,2571.9,2571.5,4.49748305]
[1729687184841,1.21253002,2571.9,2571.6,3.88862]
[1729687185056,3.88818,2571.9,2571.5,4.49741305]
[1729687185388,3.88804,2572.0,2571.7,1.6487]
[1729687185529,5.10034002,2572.2,2571.8,0.553726]
[1729687185868,3.88788,2572.1,2571.8,0.553726]
[1729687186928,3.88781,2572.2,2571.8,0.553726]
[1729687187133,3.88789,2572.1,2571.8,0.553726]
[1729687188442,3.88803,2572.0,2571.7,1.6487]
[1729687192448,3.88795,2572.1,2571.7,5.53717]
[1729687192763,5.10048002,2572.1,2571.7,5.53717]
[1729687193369,1.21253002,2572.1,2571.8,3.88831]
[1729687193538,5.10029002,2572.2,2571.8,3.88831]
[1729687193735,5.10029002,2572.2,2571.7,5.53717]
[1729687193736,5.10029002,2572.2,2571.7,9.42558]
[1729687194076,5.10029002,2572.2,2571.7,6.54053931]
[1729687194077,8.98813002,2572.2,2571.7,6.54053931]
[1729687194434,3.88789,2572.1,2571.7,6.54053931]
[1729687195938,5.10029002,2572.2,2572.1,3.88787]
[1729687195939,0.03707255,2572.2,2572.1,3.88787]
[1729687196138,5.95288,2572.6,2572.2,1.6448]
[1729687196347,5.95288,2572.6,2572.3,0.553264]
[1729687196665,9.84001,2572.6,2572.3,0.553264]
[1729687196970,5.95288,2572.6,2572.3,0.553264]
[1729687197479,5.95288,2572.6,2572.4,0.05830229]
[1729687197648,9.83999,2572.6,2572.4,0.05830229]
[1729687198459,5.95288,2572.6,2572.4,0.28393892]
[1729687199779,5.95288,2572.6,2572.4,4.17133892]
[1729687199964,5.95288,2572.5,2572.4,5.76183892]
[1729687200168,5.95288,2572.9,2572.5,3.88714]
[1729687200404,5.95288,2572.8,2572.6,3.8871]
[1729687200615,5.95288,2572.8,2572.7,0.38871]
[1729687201076,5.98756146,2572.8,2572.7,0.38871]
[1729687201477,9.87438146,2572.8,2572.4,5.76183892]
[1729687201665,3.88718,2572.6,2572.4,0.05830229]
[1729687201864,6.00392816,2572.5,2572.4,0.05830229]
[1729687202401,7.62063486,2572.5,2572.4,0.05830229]
[1729687202604,9.00392816,2572.5,2572.4,0.05830229]
[1729687205528,11.0286801,2572.5,2571.6,1.5536]
[1729687205704,3.88827,2571.9,2571.6,1.5536]
[1729687205910,3.88827,2571.9,2571.6,2.10367773]
[1729687206213,0.03472839,2571.8,2571.6,2.10367773]
[1729687208106,3.88827,2571.9,2571.6,2.10367773]
[1729687208280,0.034718,2571.7,2571.5,0.05831732]
[1729687208486,7.42840958,2571.8,2571.5,0.05831732]
[1729687208685,0.03472184,2571.7,2571.5,0.05831732]
[1729687208985,0.03471356,2571.6,2571.5,0.05831732]
[1729687209796,3.8884,2571.8,2571.5,0.05831732]
[1729687210132,1.59831999,2571.7,2571.3,1.5169]
[1729687210303,3.88885,2571.5,2571.1,1.6273]
[1729687210636,3.92334805,2571.4,2571.1,1.6273]
[1729687210986,0.03433805,2571.4,2571.1,1.6273]
[1729687211301,0.03433805,2571.4,2571.1,2.178981]
[1729687211721,0.03433805,2571.4,2571.1,6.068351]
[1729687212389,3.88875,2571.6,2571.1,6.12668319]
[1729687212591,3.92303582,2571.5,2571.1,2.23731319]
[1729687213000,3.8888,2571.5,2571.1,2.23731319]
[1729687213406,3.8888,2571.5,2571.1,6.12667319]
[1729687213627,3.8888,2571.5,2571.1,2.23731319]
[1729687214430,3.88895,2571.4,2571.1,2.23731319]
[1729687214642,3.8888,2571.5,2571.1,1.68563219]
[1729687214643,3.88909,2571.3,2571.1,1.68563219]
[1729687215142,3.88895,2571.4,2571.1,1.68563219]
[1729687215687,3.8888,2571.5,2571.1,1.68563219]
[1729687216386,7.08187081,2572.0,2571.2,3.96698101]
[1729687216731,3.88861,2571.7,2571.2,3.88921]
[1729687216911,3.88861,2571.7,2571.3,0.55748422]
[1729687217103,3.88861,2571.7,2571.3,4.44656422]
[1729687217432,3.88861,2571.7,2571.4,1.6125]
[1729687219016,3.88818,2571.9,2571.4,1.6125]
[1729687219217,3.8885,2571.7,2571.4,1.6125]
[1729687219541,3.8885,2571.7,2571.4,2.21840642]
[1729687219847,3.88863,2571.6,2571.4,1.6125]
[1729687222103,3.88849,2571.7,2571.4,1.6125]
[1729687222850,5.05850958,2572.0,2571.4,5.50142]
[1729687222851,4.5185,2572.0,2571.4,5.50142]
[1729687223004,3.88842,2571.8,2571.4,5.50142]
[1729687223205,3.88815,2572.0,2571.5,3.9664696]
[1729687223450,3.88815,2572.0,2571.6,0.94678896]
[1729687223752,3.88815,2572.0,2571.7,0.05832271]
[1729687224309,3.88817,2571.9,2571.7,0.05832271]
[1729687224741,3.54000958,2572.0,2571.4,1.6125]
[1729687224944,3.88878,2571.5,2571.2,1.6477]
[1729687225430,3.88878,2571.5,2571.2,2.59618722]
[1729687226033,3.88894,2571.4,2571.2,0.94848722]
[1729687226343,3.88923,2571.2,2571.1,0.05833219]
[1729687226648,7.97923958,2571.2,2571.1,0.05833219]
[1729687229654,10.97923958,2571.2,2571.1,0.05833219]
[1729687229854,10.97923958,2571.2,2570.3,1.557]
[1729687229855,3.89036,2570.5,2570.3,1.557]
[1729687230067,3.89036,2570.5,2570.3,2.101781]
[1729687230358,3.89018,2570.6,2570.3,2.101781]
[1729687231418,3.89018,2570.6,2570.4,0.05834783]
[1729687232145,0.06652373,2570.5,2570.4,0.05834783]
[1729687232348,0.06652373,2570.5,2570.0,1.0]
[1729687232349,3.89089,2570.1,2570.0,1.0]
[1729687232719,3.95648012,2570.1,2570.0,1.0]
[1729687233661,3.95648012,2570.1,2570.0,1.05835127]
[1729687233662,0.06559012,2570.1,2570.0,1.05835127]
[1729687233967,0.06445207,2570.1,2570.0,1.05835127]
[1729687234758,3.89061,2570.3,2570.1,1.5867]
[1729687235533,3.89074,2570.2,2570.1,1.5867]
[1729687235946,3.89074,2570.2,2570.0,1.0]
[1729687236257,3.89063,2570.3,2570.0,1.0]
[1729687236431,3.89055,2570.4,2570.0,1.0]
[1729687236616,3.8903,2570.5,2570.0,5.61650912]
[1729687236848,3.89024,2570.6,2570.1,3.94913677]
[1729687237042,3.89024,2570.6,2570.3,1.5564]
[1729687238052,3.89001,2570.7,2570.3,1.5564]
[1729687238820,3.89001,2570.7,2570.4,0.07780202]
[1729687239070,3.89001,2570.7,2570.4,0.9415442]
[1729687240057,3.88954,2571.0,2570.5,1.6111]
[1729687240266,3.88932,2571.2,2570.6,0.07779299]
[1729687240562,3.88932,2571.2,2570.6,0.64153729]
[1729687240761,3.88955,2571.0,2570.6,0.64153729]
[1729687243434,3.88925,2571.2,2570.9,0.63704907]
[1729687243626,3.88925,2571.2,2571.0,0.05833989]
[1729687243826,3.88923,2571.2,2571.0,0.05833989]
[1729687244054,3.88908,2571.3,2571.1,1.5358]
[1729687246177,3.88938,2571.1,2571.0,0.05833989]
[1729687246552,7.42938958,2571.1,2571.0,0.05833989]
[1729687246770,7.42938958,2571.1,2570.4,1.69503998]
[1729687246771,3.89002,2570.7,2570.4,1.69503998]
[1729687247373,3.89017,2570.6,2570.4,2.64267498]
[1729687247786,3.88997,2570.8,2570.4,2.64267498]
[1729687247964,3.88997,2570.8,2570.4,6.53310498]
[1729687249661,3.88997,2570.8,2570.5,0.07779757]
[1729687249868,3.88964,2571.0,2570.5,3.89022]
[1729687250043,7.77931,2571.0,2570.6,1.0423265]
[1729687250250,3.88971,2570.9,2570.6,1.0423265]
[1729687251442,7.77867,2571.2,2570.7,3.88988]
[1729687251648,3.88933,2571.2,2570.8,1.5644]
[1729687251895,1.5564,2571.4,2570.6,0.05834584]
[1729687251896,3.54000958,2571.3,2570.6,0.05834584]
[1729687252053,7.77953,2570.9,2570.6,0.05834584]
[1729687252556,3.88999,2570.7,2570.6,0.05834584]
[1729687253785,1.6053,2571.0,2570.6,0.05834584]
[1729687253997,3.88997,2570.8,2570.6,0.05834584]
[1729687254492,3.88992,2570.8,2570.6,0.05834584]
[1729687255288,3.88992,2570.8,2570.3,5.44959]
[1729687255459,3.88992,2570.8,2570.4,0.934023]
[1729687256123,0.06128976,2570.7,2570.4,0.934023]
[1729687256288,3.88992,2570.8,2570.4,0.934023]
[1729687256483,0.06128976,2570.7,2570.5,0.05834626]
[1729687256689,3.88992,2570.8,2570.5,0.05834626]
[1729687256891,0.06128976,2570.7,2570.5,0.70254219]
[1729687257200,3.88992,2570.8,2570.5,0.70254219]
[1729687257821,0.06128976,2570.7,2570.5,0.70254219]
[1729687258174,3.88992,2570.8,2570.5,0.70254219]
[1729687258407,0.06128659,2570.6,2570.5,0.78033979]
[1729687258621,3.8897,2570.9,2570.5,0.78033979]
[1729687258787,3.88956,2571.0,2570.7,1.5596]
[1729687259525,7.77922,2571.0,2570.7,1.5596]
[1729687259715,3.88956,2571.0,2570.7,1.5596]
[1729687260423,3.88977,2570.9,2570.7,1.5596]
[1729687260728,3.88977,2570.9,2570.5,5.46415626]
[1729687261029,3.88977,2570.9,2570.5,6.39961689]
[1729687261539,3.88999,2570.7,2570.5,2.50940689]
[1729687261690,7.78008,2570.7,2570.5,1.57394626]
[1729687262015,3.88999,2570.7,2570.5,1.57394626]
[1729687262599,3.88986,2570.8,2570.5,1.57394626]
[1729687262837,3.88961,2571.0,2570.5,1.57394626]
[1729687262994,3.88961,2571.0,2570.5,5.46410626]
[1729687263327,3.8897,2570.9,2570.6,0.54641063]
[1729687264004,3.88985,2570.8,2570.6,0.54641063]
[1729687264206,3.88985,2570.8,2570.5,1.57394626]
[1729687264420,3.8897,2570.9,2570.5,5.46419626]
[1729687264889,3.8897,2570.9,2570.5,1.57394626]
[1729687265219,3.8897,2570.9,2570.5,5.46423626]
[1729687266205,3.8897,2570.9,2570.5,5.46413626]
[1729687266422,3.8897,2570.9,2570.6,0.54641363]
[1729687266997,1.6298,2571.2,2570.6,0.54641363]
[1729687267223,3.88994,2570.8,2570.5,1.57394626]
[1729687267533,5.51905,2571.2,2570.5,1.57394626]
[1729687267705,3.89,2570.7,2570.5,1.57394626]
[1729687267894,7.78012,2570.7,2570.5,1.57394626]
[1729687268497,3.89,2570.7,2570.5,1.57394626]
[1729687268900,3.89,2570.7,2570.5,1.5156]
[1729687269412,3.89,2570.7,2570.3,3.89056]
[1729687269725,3.89,2570.7,2570.3,6.493788]
[1729687270337,3.89025,2570.6,2570.3,2.603228]
[1729687270674,3.89025,2570.6,2570.4,0.05834626]
[1729687270998,3.89,2570.7,2570.4,0.05834626]
[1729687271198,0.061014,2570.5,2570.3,2.603228]
[1729687271409,3.89021,2570.6,2570.3,2.603228]
[1729687271635,0.06101083,2570.4,2570.3,2.68103075]
[1729687271839,3.89021,2570.6,2570.3,2.73938094]
[1729687272035,0.06101083,2570.4,2570.3,2.73938094]
[1729687272226,3.89021,2570.6,2570.3,2.73938094]
[1729687272537,0.06101083,2570.4,2570.3,2.66157819]
[1729687272697,3.89021,2570.6,2570.3,2.66157819]
[1729687272897,0.06101083,2570.4,2570.3,2.66157819]
[1729687273097,3.89021,2570.6,2570.3,2.66157819]
[1729687273632,0.061014,2570.5,2570.3,2.66157819]
[1729687274969,3.89001,2570.7,2570.3,6.55212819]
[1729687275162,0.06101716,2570.6,2570.3,6.55212819]
[1729687275375,0.06101716,2570.6,2570.4,1.04428582]
[1729687277680,3.89016,2570.6,2570.3,1.58345019]
[1729687277842,0.061014,2570.5,2570.3,0.05835019]
[1729687278027,3.89086,2570.2,2570.0,1.0]
[1729687278228,1.6656,2570.4,2570.0,1.0]
[1729687278558,3.89031,2570.5,2570.2,1.5636]
[1729687278754,0.06083712,2570.4,2570.3,3.94885916]
[1729687278932,3.8899,2570.8,2570.3,3.94885916]
[1729687279136,0.06084661,2570.7,2570.3,4.02666167]
[1729687279332,3.8899,2570.8,2570.3,3.94885916]
[1729687279527,0.06084661,2570.7,2570.3,3.94885916]
[1729687279833,8.51863,2570.9,2570.5,3.89028]
[1729687279834,3.88973,2570.9,2570.5,3.89028]
[1729687280048,0.06076446,2570.6,2570.5,3.89028]
[1729687280359,0.06063283,2570.6,2570.5,3.89028]
[1729687280561,3.88973,2570.9,2570.5,5.52167802]
[1729687280769,0.06063916,2570.8,2570.5,5.52167802]
[1729687280952,0.06063916,2570.8,2570.6,1.03524229]
[1729687281347,0.06063916,2570.8,2570.6,4.92536229]
[1729687281528,3.88955,2571.0,2570.6,4.92536229]
[1729687281730,0.06075289,2570.9,2570.6,5.00315573]
[1729687281935,0.06075289,2570.9,2570.6,4.92536229]
[1729687283350,0.06075289,2570.9,2570.8,1.5152]
[1729687283556,0.60889642,2571.1,2570.8,6.88983]
[1729687283756,3.24836652,2571.8,2571.4,3.88889]
[1729687283977,3.88834,2571.8,2571.4,0.05832758]
[1729687284261,3.88817,2571.9,2571.4,0.05832758]
[1729687284876,3.88839,2571.8,2571.4,0.05832758]
[1729687285079,5.49853652,2571.9,2571.4,0.05832758]
[1729687285374,3.88817,2571.9,2571.5,0.07776749]
[1729687285726,3.54000958,2571.7,2571.4,0.05832758]
[1729687285854,3.54000958,2571.5,2571.4,0.05832758]
[1729687286187,3.59167734,2571.5,2571.4,0.05832758]
[1729687286475,9.09082386,2571.5,2571.4,0.05832758]
[1729687286688,7.48045734,2571.5,2571.4,0.05832758]
[1729687287174,7.48045734,2571.5,2570.3,3.94890916]
[1729687287175,1.5342,2571.0,2570.4,1.5891]
[1729687287380,7.48134836,2570.9,2570.4,1.5891]
[1729687287686,3.88984,2570.8,2570.3,3.94882916]
[1729687287841,3.94114883,2570.8,2570.3,8.77713308]
[1729687288481,0.05130883,2570.8,2570.3,8.77713308]
[1729687288682,0.05130883,2570.8,2570.4,3.89043]
[1729687290369,0.05130883,2570.8,2570.4,3.96822812]
[1729687290544,5.42382,2571.0,2570.4,4.92974512]
[1729687290748,3.94083883,2570.9,2570.4,4.92974512]
[1729687291788,3.88992,2570.8,2570.4,1.03931512]
[1729687292007,0.0511425,2570.7,2570.3,3.89048]
[1729687292346,3.88992,2570.8,2570.3,3.89048]
[1729687292550,0.0511425,2570.7,2570.3,7.78096]
[1729687292781,3.88969,2570.9,2570.3,8.77123286]
[1729687293091,0.05114567,2570.8,2570.3,8.77123286]
[1729687293335,0.05114567,2570.8,2570.3,8.77127286]
[1729687293512,0.05114567,2570.8,2570.4,0.07779813]
[1729687293850,0.05114567,2570.8,2570.5,3.89022]
[1729687294153,0.051053,2570.7,2570.4,0.07779813]
[1729687294383,3.8897,2570.9,2570.4,0.72748023]
[1729687294568,0.05105617,2570.8,2570.4,0.72748023]
[1729687294967,0.05105617,2570.8,2570.4,0.6496821]
[1729687295166,0.05105617,2570.8,2570.4,3.96815814]
[1729687295392,0.05105617,2570.8,2570.6,3.89005]
[1729687295558,3.88942,2571.1,2570.7,0.07779061]
[1729687295758,0.05084668,2571.0,2570.7,0.07779061]
[1729687296164,0.05084668,2571.0,2570.6,3.89005]
[1729687297401,0.05084668,2571.0,2570.7,0.0777906]
[1729687297560,0.05084668,2571.0,2570.6,3.89005]
[1729687298893,0.05084668,2571.0,2570.7,3.96770063]
[1729687299262,3.88927,2571.2,2570.7,3.88991]
[1729687299464,0.04916872,2570.9,2570.7,3.88991]
[1729687299667,3.88909,2571.3,2570.8,3.88983]
[1729687300107,3.15767802,2571.4,2570.9,1.679826]
[1729687300273,3.8889,2571.5,2571.0,3.88952]
[1729687300874,7.13421802,2571.6,2570.9,1.60204082]
[1729687301103,3.93823774,2571.4,2570.9,5.49171082]
[1729687301413,0.04924458,2571.3,2570.9,5.49171082]
[1729687301591,0.04924458,2571.3,2571.0,0.99216477]
[1729687301968,3.88878,2571.5,2571.0,4.95947635]
[1729687302169,0.04924774,2571.4,2571.0,4.95947635]
[1729687302490,0.04924774,2571.4,2571.1,3.88935]
[1729687302900,3.88874,2571.6,2571.1,7.77865]
[1729687303070,0.04924458,2571.3,2571.1,8.81593556]
[1729687303272,3.88874,2571.6,2571.1,4.92658556]
[1729687303505,0.04924141,2571.2,2571.1,4.92658556]
[1729687303711,3.88874,2571.6,2571.1,4.92658556]
[1729687303863,0.04924141,2571.2,2571.1,4.92658556]
[1729687304069,3.88882,2571.5,2571.1,1.03728556]
[1729687304378,3.88882,2571.5,2571.1,4.92665556]
[1729687304605,0.04924774,2571.4,2571.2,0.49266556]
[1729687307080,3.88865,2571.6,2571.2,0.49266556]
[1729687307307,0.04924458,2571.3,2571.2,0.49266556]
[1729687307473,3.88865,2571.6,2571.2,0.49266556]
[1729687307674,0.04924458,2571.3,2571.1,4.92665556]
[1729687307900,3.88865,2571.6,2571.1,4.92665556]
[1729687308098,0.04924141,2571.2,2571.1,4.92665556]
[1729687308286,3.88865,2571.6,2571.1,4.92665556]
[1729687308841,0.0492509,2571.5,2571.1,4.92665556]
[1729687308976,0.0492509,2571.5,2571.2,0.49266556]
[1729687311492,3.9381109,2571.5,2571.2,0.49266556]
[1729687311700,5.04270958,2571.4,2570.9,0.05834082]
[1729687311892,3.88946,2571.1,2570.9,0.05834082]
[1729687312283,0.04956142,2571.0,2570.9,0.05834082]
[1729687313529,3.93909142,2571.0,2570.9,0.05834082]
[1729687314696,0.04956142,2571.0,2570.9,0.05834082]
[1729687316424,5.3917,2571.4,2571.0,3.8895]
[1729687316784,3.889,2571.4,2571.0,3.8895]
[1729687319931,3.88888,2571.5,2571.0,3.96728453]
[1729687320600,1.6035,2571.6,2571.1,3.88935]
[1729687321195,1.6035,2571.6,2571.2,3.88909]
[1729687321433,1.6035,2571.6,2571.3,0.777844]
[1729687322238,3.8886,2571.7,2571.3,6.220004]
[1729687322393,6.7316876,2571.8,2571.3,6.220004]
[1729687322394,7.08001802,2571.8,2571.3,6.220004]
[1729687322711,3.88847,2571.7,2571.3,6.220004]
[1729687322891,5.50732802,2571.9,2571.4,3.88888]
[1729687323098,3.88825,2571.9,2571.4,4.90754601]
[1729687323297,3.88825,2571.9,2571.5,3.94709794]
[1729687324000,3.88804,2572.0,2571.6,3.88859]
[1729687324200,3.88804,2572.0,2571.5,3.94709794]
[1729687324201,5.50696802,2572.1,2571.7,5.44156]
[1729687324440,3.88789,2572.1,2571.7,5.44156]
[1729687325040,3.88789,2572.1,2571.7,1.5531]
[1729687325536,7.77586,2572.1,2571.7,1.5531]
[1729687326102,3.88789,2572.1,2571.7,1.5531]
[1729687326436,3.88789,2572.1,2571.7,5.99928395]
[1729687326744,9.00037958,2572.2,2571.8,3.8883]
[1729687326902,3.88773,2572.2,2571.8,3.8883]
[1729687327302,3.88799,2572.1,2571.7,2.11087395]
[1729687327538,3.8881,2572.0,2571.7,2.11087395]
[1729687328038,7.42779958,2572.2,2571.7,2.11087395]
[1729687328239,3.88787,2572.1,2571.7,2.11087395]
[1729687328415,3.88787,2572.1,2571.8,0.59994839]
[1729687329035,7.42779958,2572.2,2571.8,0.59994839]
[1729687329036,7.42772958,2572.2,2571.8,4.48812839]
[1729687329339,3.88772,2572.2,2571.8,4.48812839]
[1729687329841,3.88758,2572.3,2571.9,3.88817]
[1729687330722,3.88746,2572.4,2572.0,3.88795]
[1729687331039,0.04853213,2572.3,2572.1,2.348512]
[1729687331439,3.88734,2572.5,2572.1,2.348512]
[1729687331645,0.04852897,2572.2,2572.1,2.348512]
[1729687331815,3.88726,2572.5,2572.1,2.348512]
[1729687332018,0.04853529,2572.4,2572.2,0.6236512]
[1729687332204,3.88702,2572.7,2572.2,0.6236512]
[1729687332402,0.04856268,2572.6,2572.3,3.88757]
[1729687332613,3.88684,2572.8,2572.5,1.5303]
[1729687332820,0.04856584,2572.7,2572.5,1.5303]
[1729687333064,9.03814958,2573.0,2572.5,2.072087]
[1729687333342,0.04856268,2572.6,2572.5,1.5303]
[1729687333547,3.88705,2572.7,2572.2,2.29566309]
[1729687333750,3.88726,2572.5,2572.2,2.29566309]
[1729687334040,0.04855636,2572.4,2572.2,2.29566309]
[1729687334516,3.54000958,2572.4,2571.8,0.59994839]
[1729687334737,3.54000958,2572.4,2571.7,1.6461]
[1729687334738,3.54000958,2572.0,2571.7,1.6461]
[1729687334918,7.42809958,2572.0,2571.7,1.6461]
[1729687335120,0.04870359,2571.9,2571.7,1.6461]
[1729687335632,3.88799,2572.1,2571.7,5.53456]
[1729687335949,0.04870675,2572.0,2571.7,5.53456]
[1729687336115,0.04870675,2572.0,2571.7,6.48271579]
[1729687336917,0.04870675,2572.0,2571.7,6.48270579]
[1729687337113,0.04870675,2572.0,2571.7,6.48265579]
[1729687337318,3.88772,2572.2,2571.7,6.48265579]
[1729687337540,0.04858262,2571.9,2571.7,6.48265579]
[1729687337763,3.88781,2572.2,2571.7,6.48262579]
[1729687337942,0.04857946,2571.8,2571.7,6.48262579]
[1729687338146,3.88781,2572.2,2571.7,6.48262579]
[1729687338318,0.04857946,2571.8,2571.7,6.48262579]
[1729687338514,3.88781,2572.2,2571.8,3.88832]
[1729687338718,3.88743,2572.4,2571.8,3.96599734]
[1729687338960,3.88757,2572.3,2571.9,3.8881]
[1729687339130,3.88757,2572.3,2572.0,0.05831288]
[1729687339327,5.04090958,2572.5,2572.0,0.05831288]
[1729687339528,3.88742,2572.4,2572.0,0.05831288]
[1729687339759,3.88758,2572.3,2572.0,0.05831288]
[1729687340254,3.88749,2572.4,2572.0,0.05831288]
[1729687340553,3.88757,2572.3,2572.0,0.05831288]
[1729687340765,3.88774,2572.2,2572.0,0.05831288]
[1729687340963,3.88757,2572.3,2572.0,0.05831288]
[1729687341929,3.88773,2572.2,2572.0,0.05831288]
[1729687342469,3.88752,2572.4,2572.0,0.05831288]
[1729687343925,3.88767,2572.3,2572.0,0.05831288]
[1729687345028,4.49617703,2572.3,2572.0,0.05831288]
[1729687345270,4.49615703,2572.3,2572.0,0.05831288]
[1729687345471,3.88781,2572.2,2572.0,0.05831288]
[1729687346163,0.04874149,2572.1,2572.0,0.05831288]
[1729687346966,4.49609703,2572.3,2572.0,0.05831288]
[1729687347131,0.04874149,2572.1,2572.0,0.05831288]
[1729687347332,8.38374703,2572.3,2572.0,0.05831288]
[1729687347528,0.04874149,2572.1,2572.0,0.05831288]
[1729687348066,8.38374703,2572.3,2572.0,0.05831288]
[1729687348241,0.04874149,2572.1,2572.0,0.05831288]
[1729687348441,8.38374703,2572.3,2572.0,0.05831288]
[1729687348639,0.04874465,2572.2,2572.0,0.05831288]
[1729687348831,4.49609703,2572.3,2572.0,0.05831288]
[1729687349033,0.04874465,2572.2,2571.8,7.7765]
[1729687349233,4.49609703,2572.3,2571.9,3.88816]
[1729687349456,0.04881302,2572.2,2571.9,3.88816]
[1729687349878,4.49609703,2572.3,2571.9,3.88816]
[1729687350378,0.04881302,2572.2,2571.9,3.94647962]
[1729687350685,4.49609703,2572.3,2571.9,3.94647962]
[1729687350855,0.04880986,2572.1,2571.9,3.94647962]
[1729687351185,4.49609703,2572.3,2571.9,4.89456158]
[1729687351484,4.49609703,2572.3,2572.0,1.5584]
[1729687351691,0.04881302,2572.2,2572.0,1.5584]
[1729687352104,0.60850703,2572.3,2572.2,3.88772]
[1729687352592,7.57918,2572.9,2572.4,3.8874]
[1729687352593,3.88688,2572.8,2572.4,3.8874]
[1729687352755,0.6084533,2572.5,2572.4,3.8874]
[1729687353152,3.88658,2573.0,2572.5,3.88715]
[1729687353429,3.88658,2573.0,2572.5,5.47883839]
[1729687353430,0.60843198,2572.7,2572.5,5.47883839]
[1729687354064,0.04888942,2572.6,2572.5,9.36601839]
[1729687354393,0.04888942,2572.6,2572.5,5.40108]
[1729687354590,0.04888942,2572.6,2572.5,5.47881707]
[1729687354887,0.04888942,2572.6,2572.5,6.51518778]
[1729687355512,3.93599942,2572.6,2572.5,0.07773707]
[1729687355798,3.88775,2572.2,2571.9,1.5648]
[1729687355994,0.04908358,2572.1,2571.9,1.5648]